bitfinex/quotes_ETHUSD_20220119
["timestamp","ask_amount","ask_price","bid_price","bid_amount"]
[1642581417375,0.52636,3056.3,3055.9,2.03354219]
[1642581417576,0.0112222,3056.4,3055.9,2.33354219]
[1642581417777,0.0112222,3056.4,3056.0,1.94652128]
[1642581417976,0.8294822,3056.4,3055.9,2.10348915]
[1642581418377,0.8294822,3056.4,3055.9,2.03354219]
[1642581418775,0.8294822,3056.4,3055.8,0.0022737]
[1642581418987,2.455,3056.3,3055.8,0.0022737]
[1642581419180,0.81831,3056.2,3055.9,0.06994696]
[1642581419383,0.0112222,3056.4,3055.9,0.06994696]
[1642581419981,0.0112222,3056.4,3056.2,1.41548162]
[1642581421231,0.0112222,3056.4,3056.1,1.85158845]
[1642581421432,0.8294822,3056.4,3055.9,0.06994696]
[1642581421635,1.6477422,3056.4,3055.9,0.06994696]
[1642581421833,0.0112222,3056.4,3055.9,0.06994696]
[1642581422332,0.0112222,3056.4,3056.0,1.42731817]
[1642581422532,1.63633,3057.0,3056.8,1.34856288]
[1642581422733,1.6363001,3056.9,3056.3,2.04302241]
[1642581422934,0.8181701,3056.9,3056.5,2.03799708]
[1642581423135,1.6363101,3056.9,3056.5,2.03799708]
[1642581423735,0.81818,3056.7,3056.1,0.0022737]
[1642581423940,0.8184783,3056.6,3056.1,0.0022737]
[1642581424138,1.2894783,3056.6,3055.7,0.00454739]
[1642581424771,0.81841,3056.4,3055.8,3.27863825]
[1642581425175,1.63678,3056.2,3055.9,0.00341054]
[1642581425777,1.636776,3056.3,3055.9,0.00341054]
[1642581425778,0.81839,3056.3,3055.9,0.00341054]
[1642581425976,0.81839,3056.2,3055.9,0.00341054]
[1642581426177,1.6367,3056.2,3055.9,0.00341054]
[1642581426976,3.2735364,3056.2,3055.9,0.00341054]
[1642581427379,3.2235364,3056.2,3055.9,0.00341054]
[1642581427579,0.81841,3056.0,3055.9,0.00341054]
[1642581429034,2.45556,3056.0,3055.7,0.00454739]
[1642581429434,3.2743216,3056.0,3055.7,0.00454739]
[1642581429630,0.8185858,3055.9,3055.7,0.00454739]
[1642581429833,0.81857,3056.0,3055.7,0.00454739]
[1642581430030,0.81838,3056.2,3055.7,0.00454739]
[1642581431533,3.2738437,3056.1,3055.7,0.00454739]
[1642581431732,1.6370473,3056.0,3055.7,0.00454739]
[1642581432381,1.9370473,3056.0,3055.6,0.0018292]
[1642581432581,0.47213685,3055.9,3055.6,0.0018292]
[1642581432787,1.6374722,3055.7,3055.4,2.78354046]
[1642581432983,1.2897322,3055.7,3055.4,2.78354046]
[1642581433189,2.2897322,3055.7,3055.5,0.00113685]
[1642581434287,3.1084422,3055.7,3055.5,0.00113685]
[1642581434490,0.81871,3055.6,3055.5,0.00113685]
[1642581434686,2.45613,3055.6,3055.5,0.00113685]
[1642581435086,2.45613,3055.6,3055.4,2.78539637]
[1642581435287,3.274734,3055.6,3055.4,2.78539637]
[1642581435489,0.3,3055.5,3055.4,2.78539637]
[1642581435692,0.3,3055.5,3055.3,0.0256004]
[1642581435693,7.2,3055.4,3055.3,0.0256004]
[1642581435929,8.83775,3055.3,3055.1,0.001828]
[1642581436133,8.83775,3055.3,3054.8,0.0018292]
[1642581436134,7.2,3055.1,3054.8,0.0018292]
[1642581436334,0.471,3055.0,3054.8,0.0018292]
[1642581436631,0.81894,3054.9,3054.8,0.0018292]
[1642581436830,5.33994,3054.9,3054.8,0.0018292]
[1642581437136,6.33994,3054.9,3054.8,0.00523974]
[1642581437529,6.33994,3054.9,3054.4,0.001828]
[1642581437530,7.2,3054.8,3054.4,0.001828]
[1642581437734,0.81896,3054.7,3054.4,0.001828]
[1642581437935,0.81896,3054.7,3054.1,0.0018292]
[1642581437936,7.671,3054.6,3054.1,0.0018292]
[1642581438136,1.0,3054.5,3054.1,0.0018292]
[1642581438332,1.0,3054.5,3054.2,0.00170527]
[1642581439538,7.2,3054.3,3054.1,0.0018292]
[1642581439786,8.95172413,3054.2,3054.1,0.0018292]
[1642581439981,10.72272413,3054.2,3054.1,0.0018292]
[1642581440180,7.2,3054.1,3053.7,0.001828]
[1642581440380,3.95756136,3054.0,3053.7,0.001828]
[1642581440583,9.4573701,3053.9,3053.8,0.00227369]
[1642581440982,10.7573701,3053.9,3053.8,0.00227369]
[1642581441783,7.2,3053.8,3053.7,0.001828]
[1642581441987,8.671,3053.8,3053.7,0.001828]
[1642581442183,7.2,3053.7,3052.9,0.001828]
[1642581442389,0.8193649,3053.5,3052.9,0.001828]
[1642581442582,0.471,3053.4,3053.0,0.00454739]
[1642581442781,0.4811,3053.4,3053.0,0.00454739]
[1642581442986,3.10973,3053.4,3053.0,0.00454739]
[1642581443187,3.10973,3053.4,3052.9,0.001828]
[1642581443188,7.2,3053.3,3052.9,0.001828]
[1642581443442,7.2,3053.3,3052.6,0.0018292]
[1642581443443,7.2,3053.1,3052.6,0.0018292]
[1642581443730,9.31014,3053.0,3052.7,0.00170527]
[1642581443931,7.2,3052.9,3051.9,0.0018292]
[1642581444129,1.471,3052.8,3052.2,1.83863553]
[1642581444431,2.93839375,3052.7,3052.3,0.0022737]
[1642581444630,8.021,3052.6,3051.9,0.0018292]
[1642581444829,9.66183527,3052.6,3052.0,0.00170527]
[1642581445033,0.00113685,3052.5,3052.0,0.00170527]
[1642581445429,0.81947,3052.4,3052.1,1.17196083]
[1642581445830,0.81947,3052.4,3052.2,1.65203863]
[1642581446529,0.81957,3052.4,3052.2,1.65203863]
[1642581447981,0.51927,3052.4,3052.2,1.65203863]
[1642581448391,0.00113685,3052.5,3052.4,1.03853999]
[1642581448782,0.1272,3053.7,3052.4,1.03853999]
[1642581448783,1.6383778,3053.7,3053.1,1.23855755]
[1642581448980,6.5501,3053.6,3052.7,0.10498413]
[1642581449183,0.81913,3053.4,3053.3,2.18159059]
[1642581449584,0.82424581,3053.4,3053.3,2.18159059]
[1642581449784,3.52424581,3053.4,3053.3,2.18159059]
[1642581449985,3.52424581,3053.4,3052.6,0.0022737]
[1642581450486,1.00454739,3053.3,3052.6,0.0022737]
[1642581450686,0.81927,3053.1,3052.6,0.0022737]
[1642581450931,0.8193213,3053.0,3052.7,2.26520865]
[1642581451134,0.82216342,3053.0,3052.7,2.26520865]
[1642581451336,0.00227369,3052.9,3052.7,2.26520865]
[1642581451635,0.8193213,3053.0,3052.8,2.7852684]
[1642581452039,0.82156369,3052.9,3052.8,2.7852684]
[1642581452435,0.81929,3052.9,3052.8,2.78525412]
[1642581452636,1.63858,3052.9,3052.7,3.41879048]
[1642581453039,1.34738527,3052.9,3052.7,3.41879048]
[1642581453236,1.34738527,3052.9,3052.7,2.26520865]
[1642581454436,1.34738527,3052.9,3052.8,2.78531981]
[1642581454682,0.81922,3053.1,3052.8,2.78531981]
[1642581455172,0.82092527,3053.1,3052.8,2.78531981]
[1642581456577,0.00170527,3053.1,3052.8,2.78531981]
[1642581458080,0.52951527,3053.3,3052.8,2.78531981]
[1642581458524,0.52951527,3053.3,3052.9,0.00113685]
[1642581458727,0.52951527,3053.3,3053.2,2.18485204]
[1642581459127,0.53065212,3053.3,3053.2,2.18485204]
[1642581460132,0.00113685,3053.3,3053.2,2.18485204]
[1642581460330,0.00113685,3053.3,3053.2,4.96978852]
[1642581461939,0.00113685,3053.3,3053.2,4.96979536]
[1642581462981,0.00113685,3053.3,3053.2,5.89149536]
[1642581463281,6.5501,3053.6,3053.3,3.20341055]
[1642581463282,1.80068869,3053.6,3053.3,3.20341055]
[1642581463478,1.80068869,3053.6,3053.4,2.78494332]
[1642581463778,0.00113684,3053.5,3053.4,2.78494332]
[1642581465178,0.00113684,3053.5,3053.4,2.85489028]
[1642581466234,0.00113684,3053.5,3053.4,3.15489028]
[1642581466631,0.00113684,3053.5,3053.4,10.35489028]
[1642581466831,0.00113684,3053.5,3053.4,10.05489028]
[1642581467231,0.00113684,3053.5,3053.4,11.70361782]
[1642581467831,0.00113684,3053.5,3053.4,12.00361782]
[1642581468033,0.00113684,3053.5,3053.4,10.35489028]
[1642581468233,1.50922553,3053.6,3053.5,6.37158533]
[1642581468437,1.50922553,3053.6,3053.5,9.15652865]
[1642581468834,1.50922553,3053.6,3053.5,9.22647561]
[1642581469684,0.001828,3054.0,3053.6,7.2]
[1642581469880,0.001828,3054.0,3053.7,2.90616494]
[1642581470079,0.0022737,3053.9,3053.8,9.50954332]
[1642581470378,0.0022737,3053.9,3053.8,11.45616349]
[1642581470578,0.001828,3054.0,3053.9,7.2]
[1642581470779,0.001828,3054.0,3053.9,9.98494332]
[1642581470982,0.001828,3054.0,3053.9,13.35980068]
[1642581471179,0.001828,3054.0,3053.9,13.42974764]
[1642581471381,0.001828,3054.0,3053.9,11.78312747]
[1642581471580,0.001828,3054.0,3053.9,8.75988472]
[1642581471780,0.001828,3054.0,3053.9,4.58312747]
[1642581472181,0.001828,3054.0,3053.9,4.51318051]
[1642581473180,0.001828,3054.0,3053.9,2.78494332]
[1642581473425,0.81891,3054.1,3053.9,2.78494332]
[1642581473426,0.521138,3054.1,3053.9,2.78494332]
[1642581474529,0.521138,3054.1,3053.9,2.73494332]
[1642581475933,0.521138,3054.1,3054.0,0.01494143]
[1642581476339,0.52227485,3054.1,3054.0,0.00014143]
[1642581476538,0.52227485,3054.1,3052.9,2.47422817]
[1642581476539,2.29327485,3054.1,3052.9,1.64775702]
[1642581476734,0.81923,3053.9,3052.9,0.00113685]
[1642581476938,7.2,3053.7,3052.8,7.011]
[1642581477196,0.471,3053.6,3052.8,7.011]
[1642581477395,7.2,3053.5,3052.8,7.011]
[1642581477595,1.471,3053.4,3052.6,0.0022737]
[1642581477795,0.81934,3053.3,3052.9,0.00284212]
[1642581477994,7.971,3053.2,3052.6,0.0022737]
[1642581478197,1.63882,3053.1,3052.7,0.00113684]
[1642581478395,1.2903766,3053.0,3052.7,0.00113684]
[1642581478596,2.1097466,3053.0,3052.7,0.00113684]
[1642581479394,0.81937,3052.9,3052.7,0.00113684]
[1642581479593,0.8194,3052.8,3052.7,0.00113684]
[1642581480795,1.1194,3052.8,3052.7,0.00113684]
[1642581481836,0.8194,3052.8,3052.7,0.00113684]
[1642581483540,2.16586,3052.9,3052.8,6.8888]
[1642581483742,0.52707,3052.9,3052.8,6.8888]
[1642581483944,0.82023685,3053.1,3052.8,8.53542017]
[1642581484340,0.82023685,3053.1,3052.8,9.36189132]
[1642581484539,1.63937685,3053.1,3052.9,3.40401119]
[1642581484779,1.63937685,3053.1,3052.8,3.29645964]
[1642581484980,1.63937685,3053.1,3052.8,1.6388]
[1642581485579,0.81923,3053.0,3052.8,1.6388]
[1642581485781,2.45773,3053.0,3052.8,1.6388]
[1642581487784,2.45773,3053.0,3052.9,0.06994696]
[1642581487984,2.45773,3053.0,3052.8,1.6388]
[1642581488646,0.82023685,3053.1,3052.8,1.6388]
[1642581488844,0.51943685,3053.1,3052.8,1.6388]
[1642581490249,0.81917,3053.0,3052.8,1.6388]
[1642581491451,3.2769097,3053.0,3052.8,1.6388]
[1642581491655,1.63855,3052.9,3052.8,1.6388]
[1642581492881,2.45765,3053.0,3052.8,1.6388]
[1642581493081,0.51943685,3053.1,3052.8,1.6388]
[1642581493880,0.22823685,3053.1,3052.8,1.6388]
[1642581494079,0.22823685,3053.1,3052.8,3.57328036]
[1642581494284,0.22823685,3053.1,3053.0,0.06994696]
[1642581494285,0.00113685,3053.1,3053.0,0.06994696]
[1642581494484,0.00113685,3053.1,3053.0,7.26994696]
[1642581494685,0.00113685,3053.1,3053.0,13.15967652]
[1642581494979,0.00113685,3053.1,3053.0,10.37486892]
[1642581495583,0.00113685,3053.1,3053.0,13.15955678]
[1642581496032,0.00113685,3053.1,3053.0,15.94897507]
[1642581496229,0.00113685,3053.1,3053.0,13.45955678]
[1642581496631,0.00113685,3053.1,3053.0,13.94675678]
[1642581496830,0.00113685,3053.1,3053.0,13.64675678]
[1642581497231,0.00113685,3053.1,3053.0,23.13330918]
[1642581497431,0.00113685,3053.1,3053.0,24.82098857]
[1642581497731,0.00113685,3053.1,3053.0,20.64395678]
[1642581497932,0.00113685,3053.1,3053.0,18.56953482]
[1642581498131,0.00113685,3053.1,3053.0,22.74656661]
[1642581498532,1.63812,3053.5,3053.2,0.0022737]
[1642581498731,0.001828,3053.6,3053.2,2.78696156]
[1642581498934,0.01490352,3053.6,3053.3,1.97373913]
[1642581499233,0.01490352,3053.6,3053.4,2.78468786]
[1642581499432,0.01490352,3053.6,3053.5,2.78468786]
[1642581499691,0.01490352,3053.6,3053.2,2.78696156]
[1642581499878,0.01604037,3053.6,3053.3,2.78468786]
[1642581500084,0.01604037,3053.6,3053.4,2.78468786]
[1642581500283,0.83507037,3053.6,3053.5,2.78468786]
[1642581500886,0.83507037,3053.6,3053.3,2.78468786]
[1642581501085,0.83507037,3053.6,3053.4,2.78468786]
[1642581501285,0.83507037,3053.6,3053.5,2.78468786]
[1642581501484,0.83507037,3053.6,3053.3,0.06994696]
[1642581501485,0.83507037,3053.6,3053.4,2.78468786]
[1642581501684,0.83507037,3053.6,3053.5,2.78468786]
[1642581501885,0.83507037,3053.6,3053.3,2.78468786]
[1642581503727,0.01604037,3053.6,3053.4,2.26715416]
[1642581503930,0.54505037,3054.4,3054.1,1.17033946]
[1642581504130,0.54505037,3054.4,3054.2,2.78468786]
[1642581504131,0.01490352,3054.3,3054.2,2.78468786]
[1642581504530,0.01490352,3054.3,3053.6,2.78468786]
[1642581504730,0.01490352,3054.3,3053.7,2.78468786]
[1642581504937,0.01490352,3054.3,3053.8,2.78468786]
[1642581504938,0.00341054,3054.2,3053.8,2.78468786]
[1642581505132,0.82227054,3054.2,3053.9,2.78468786]
[1642581505333,0.00284212,3054.1,3054.0,2.78468786]
[1642581505531,0.00284212,3054.1,3053.8,2.78468786]
[1642581505931,0.00227369,3054.0,3053.8,2.78468786]
[1642581506134,0.82118369,3054.0,3053.8,2.78468786]
[1642581506332,0.00170527,3053.9,3053.8,2.78468786]
[1642581508985,0.52851527,3054.0,3053.8,2.78468786]
[1642581509989,0.52851527,3054.0,3053.9,2.78468786]
[1642581510194,0.52851527,3054.0,3053.6,2.78468786]
[1642581510388,0.52851527,3054.0,3053.7,2.78468786]
[1642581510588,0.52851527,3054.0,3053.8,2.78468786]
[1642581510791,0.52851527,3054.0,3053.9,2.78468786]
[1642581511045,0.52851527,3054.0,3053.7,0.00113685]
[1642581511245,1.34750527,3054.0,3053.7,0.00113685]
[1642581511446,1.34750527,3054.0,3053.7,2.78468786]
[1642581511647,1.34750527,3054.0,3053.8,2.78468786]
[1642581511845,1.34750527,3054.0,3053.9,2.78468786]
[1642581512248,1.34750527,3054.0,3053.6,0.00170527]
[1642581514052,1.05320527,3054.0,3053.6,2.78639313]
[1642581514253,1.05320527,3054.0,3053.7,4.21322389]
[1642581514451,1.05320527,3054.0,3053.8,2.78468786]
[1642581514685,0.52851527,3054.0,3053.8,2.78468786]
[1642581516291,0.52851527,3054.0,3053.9,2.78468786]
[1642581516491,0.52851527,3054.0,3053.6,0.00170527]
[1642581517294,0.52851527,3054.0,3053.6,1.11309803]
[1642581517492,0.52851527,3054.0,3053.7,2.78468786]
[1642581517692,1.34753527,3054.0,3053.7,2.78468786]
[1642581518098,1.34753527,3054.0,3053.8,2.78468786]
[1642581518296,1.34753527,3054.0,3053.9,2.78468786]
[1642581518740,2.34753527,3054.0,3053.6,0.00170527]
[1642581518941,0.81914,3053.8,3053.6,0.00170527]
[1642581519137,1.34467,3053.8,3053.6,1.37870637]
[1642581519344,1.34467,3053.8,3053.7,2.78468786]
[1642581519545,1.34467,3053.8,3053.6,0.00170527]
[1642581520143,0.52554,3053.8,3053.6,0.00170527]
[1642581520647,0.52554,3053.8,3053.6,2.78639313]
[1642581520841,0.52554,3053.8,3053.7,2.78468786]
[1642581521243,0.52554,3053.8,3053.6,0.00170527]
[1642581521842,0.52554,3053.8,3053.6,2.78639313]
[1642581522042,0.52554,3053.8,3053.7,2.78468786]
[1642581522286,0.52554,3053.8,3053.6,0.00170527]
[1642581522787,0.52554,3053.8,3053.6,2.78639313]
[1642581522987,0.52554,3053.8,3053.7,2.78468786]
[1642581523192,0.52554,3053.8,3053.6,0.00170527]
[1642581523387,0.52554,3053.8,3053.6,2.78639313]
[1642581523687,0.52554,3053.8,3053.6,0.00170527]
[1642581524087,0.52554,3053.8,3053.5,2.78449975]
[1642581524088,0.52554,3053.8,3053.5,2.78677345]
[1642581524289,1.04685,3053.8,3053.6,0.00170527]
[1642581526149,1.04685,3053.8,3053.6,1.66141384]
[1642581526351,0.52554,3053.8,3053.6,1.66141384]
[1642581526752,0.52554,3053.8,3053.6,0.00170527]
[1642581527152,0.52554,3053.8,3053.6,1.66141384]
[1642581527354,0.52554,3053.8,3053.7,2.78449975]
[1642581527553,0.52554,3053.8,3053.6,0.00170527]
[1642581528559,0.52554,3053.8,3053.6,1.66141384]
[1642581528754,1.3445199,3053.8,3053.6,1.66141384]
[1642581529355,1.0514199,3053.8,3053.6,1.66141384]
[1642581530584,0.5258799,3053.8,3053.6,1.66141384]
[1642581530989,0.5258799,3053.8,3053.7,2.78449975]
[1642581531383,0.5258799,3053.8,3053.6,0.00170527]
[1642581531584,0.5258799,3053.8,3053.6,2.78620502]
[1642581531987,0.5258799,3053.8,3053.6,0.00170527]
[1642581532887,0.5258799,3053.8,3053.6,2.78620502]
[1642581533087,0.5258799,3053.8,3053.7,2.78449975]
[1642581533292,0.5258799,3053.8,3053.6,0.00170527]
[1642581534230,0.81898,3053.7,3053.6,0.00170527]
[1642581534435,0.52508,3053.7,3053.6,3.00170527]
[1642581534635,0.52508,3053.7,3053.6,5.78620502]
[1642581536039,0.52508,3053.7,3053.6,2.78620502]
[1642581536336,0.52508,3053.7,3053.6,0.00170527]
[1642581537584,1.0,3054.6,3053.6,0.00170527]
[1642581537787,0.8188693,3054.2,3053.6,3.69059393]
[1642581537983,0.00113685,3054.1,3053.7,2.78449975]
[1642581538595,0.00113685,3054.1,3053.9,3.78102203]
[1642581538790,0.00113685,3054.1,3054.0,13.67306168]
[1642581538989,0.00113685,3054.1,3054.0,13.37306168]
[1642581539188,0.00113685,3054.1,3054.0,11.41415528]
[1642581539590,0.55317617,3054.6,3054.5,1.26503682]
[1642581539791,0.56807969,3054.6,3054.5,1.26503682]
[1642581540390,0.56807969,3054.6,3054.5,4.04953657]
[1642581540592,1.38682969,3054.6,3054.5,4.04953657]
[1642581540791,1.38682969,3054.6,3054.5,2.78449975]
[1642581541040,1.38682969,3054.6,3054.1,4.44420832]
[1642581541346,0.00227369,3054.5,3054.2,2.78449975]
[1642581541642,1.38682969,3054.6,3054.3,2.78449975]
[1642581541643,1.63933687,3054.4,3054.3,2.78449975]
[1642581542040,1.63933687,3054.4,3054.0,3.95404614]
[1642581542240,1.63933687,3054.4,3054.1,2.78449975]
[1642581542441,0.00113684,3054.3,3054.1,2.78449975]
[1642581542643,0.00113684,3054.3,3054.0,5.61375471]
[1642581542843,0.00113684,3054.3,3054.1,2.78449975]
[1642581544707,0.52894844,3054.4,3054.2,3.0]
[1642581544901,0.52894844,3054.4,3054.3,2.78449975]
[1642581545702,0.01490352,3054.6,3054.3,2.78449975]
[1642581545903,1.65239452,3054.6,3054.3,2.78449975]
[1642581546103,0.00113685,3054.5,3054.3,2.78449975]
[1642581546303,0.00113685,3054.5,3054.4,2.78449975]
[1642581547001,0.00113685,3054.5,3054.1,4.44420832]
[1642581547203,0.00113685,3054.5,3054.2,2.78449975]
[1642581547402,0.00113685,3054.5,3054.3,2.78449975]
[1642581547704,0.00113685,3054.5,3054.4,9.88449975]
[1642581547903,0.00113685,3054.5,3054.4,13.34312339]
[1642581548103,0.00113685,3054.5,3054.4,11.68341482]
[1642581548540,0.00113685,3054.5,3054.4,11.75336178]
[1642581548743,0.01490352,3054.6,3054.5,7.2]
[1642581548941,0.01490352,3054.6,3054.5,12.28449975]
[1642581549146,0.01490352,3054.6,3054.5,11.94979096]
[1642581549342,0.001828,3054.8,3054.6,7.2]
[1642581549541,0.01673152,3054.8,3054.7,9.2]
[1642581549741,3.71805952,3055.9,3055.4,1.52875529]
[1642581549946,0.81841,3055.9,3055.5,2.78449975]
[1642581550145,0.00511581,3055.4,3055.1,0.06994696]
[1642581550543,0.00454739,3055.3,3055.1,0.06994696]
[1642581551042,0.00397896,3055.2,3055.1,5.1500021]
[1642581551242,0.00397896,3055.2,3055.1,3.48478071]
[1642581551647,0.00397896,3055.2,3055.1,7.63478071]
[1642581551841,0.00397896,3055.2,3055.1,8.00428071]
[1642581552041,0.00397896,3055.2,3055.1,12.18103034]
[1642581552491,0.00397896,3055.2,3055.1,8.00428071]
[1642581553093,0.00397896,3055.2,3055.1,8.27418071]
[1642581553294,0.00397896,3055.2,3055.1,8.57418071]
[1642581553698,0.00397896,3055.2,3055.1,9.57418071]
[1642581554401,0.00397896,3055.2,3055.1,8.57418071]
[1642581554798,0.53152896,3056.0,3055.1,9.39254071]
[1642581554999,0.53152896,3056.0,3055.2,2.24027504]
[1642581555299,1.63695,3055.8,3055.3,0.0695]
[1642581555699,0.81849,3055.7,3055.4,4.15]
[1642581555933,0.8184843,3055.7,3055.4,4.15170527]
[1642581556140,1.45827212,3055.8,3055.5,0.00113685]
[1642581556741,0.81848,3055.7,3055.5,0.00113685]
[1642581556943,0.81848,3055.7,3055.1,0.00341054]
[1642581557141,2.6371407,3055.7,3055.1,0.00341054]
[1642581557343,0.81863,3055.6,3055.1,0.00341054]
[1642581558543,0.81861,3055.5,3055.1,0.00341054]
[1642581558746,1.63721,3055.5,3055.1,0.00341054]
[1642581558945,0.81861,3055.5,3055.1,0.07291054]
[1642581559145,0.81861,3055.5,3055.1,0.00341054]
[1642581559344,0.81861,3055.5,3055.2,0.00284212]
[1642581559549,0.81861,3055.5,3055.1,0.00341054]
[1642581559991,0.001828,3056.3,3055.2,0.0695]
[1642581560391,0.00113685,3055.9,3055.3,0.00227369]
[1642581560992,0.00113685,3055.9,3055.0,6.8504]
[1642581560993,0.00113685,3055.9,3055.1,0.00341054]
[1642581561194,0.81857,3055.7,3055.1,0.00341054]
[1642581561492,0.81857,3055.7,3055.1,0.07291054]
[1642581561493,0.81856,3055.7,3055.1,0.07291054]
[1642581561891,0.81856,3055.7,3055.2,0.00284212]
[1642581562793,1.63714,3055.5,3055.2,0.00284212]
[1642581563432,1.63714,3055.5,3055.1,0.00341054]
[1642581563637,4.2744093,3055.5,3055.1,0.00341054]
[1642581563840,4.2744093,3055.5,3054.8,0.00511581]
[1642581563841,1.63748,3055.3,3054.8,0.00511581]
[1642581564040,2.4562115,3055.3,3054.8,0.00511581]
[1642581564341,1.6374715,3055.3,3054.8,0.00511581]
[1642581564939,1.3470715,3055.3,3054.8,0.00511581]
[1642581565339,0.81872,3055.2,3054.9,2.78340155]
[1642581565742,1.63741,3055.1,3055.0,0.00397896]
[1642581565941,1.63741,3055.1,3055.0,2.78738051]
[1642581566342,1.58741,3055.1,3055.0,2.78738051]
[1642581566542,0.81872,3055.2,3055.0,2.78738051]
[1642581566743,0.81872,3055.2,3055.1,2.78340155]
[1642581566942,0.81872,3055.2,3055.1,2.78681209]
[1642581567192,0.81855,3055.4,3055.1,0.00341054]
[1642581567594,4.8487,3055.7,3054.9,0.00454739]
[1642581567794,3.6469,3055.7,3055.0,2.78340155]
[1642581568096,5.43849,3055.8,3055.1,0.00341054]
[1642581568097,1.0,3055.6,3055.1,0.00341054]
[1642581568494,3.78409,3055.8,3055.1,0.00341054]
[1642581568795,3.78409,3055.8,3054.9,2.78794894]
[1642581568796,0.81849,3055.6,3054.9,2.78794894]
[1642581568994,0.81849,3055.6,3055.3,1.49916886]
[1642581569197,0.81848,3055.5,3055.4,2.78340155]
[1642581569394,1.63709,3055.8,3055.4,2.78510682]
[1642581569597,1.63709,3055.8,3055.4,3.08510682]
[1642581569794,1.63709,3055.8,3055.5,2.7845384]
[1642581569998,1.34519,3055.8,3055.5,3.6973384]
[1642581570198,2.16364,3055.8,3055.6,2.78340155]
[1642581570396,2.16364,3055.8,3055.5,0.91393685]
[1642581571045,2.16364,3055.8,3055.6,0.00924358]
[1642581572048,3.16364,3055.8,3055.6,0.00924358]
[1642581572846,1.81845,3055.8,3055.6,0.00924358]
[1642581573046,0.81845,3055.8,3055.6,0.00924358]
[1642581573247,1.81845,3055.8,3055.6,0.00924358]
[1642581573648,0.81845,3055.8,3055.6,0.00924358]
[1642581573847,1.81845,3055.8,3055.6,0.00924358]
[1642581574247,0.81845,3055.8,3055.6,0.00924358]
[1642581575086,0.52495,3055.8,3055.6,0.00924358]
[1642581575689,1.3435,3055.8,3055.6,0.00924358]
[1642581576691,2.3435,3055.8,3055.6,0.00924358]
[1642581577193,1.3435,3055.8,3055.6,0.00924358]
[1642581580159,1.0498,3055.8,3055.6,0.00924358]
[1642581580762,0.52495,3055.8,3055.7,2.78313143]
[1642581581161,0.52495,3055.8,3055.5,0.00113685]
[1642581581562,0.52495,3055.8,3055.4,0.00170527]
[1642581581763,0.52495,3055.8,3055.4,2.7848367]
[1642581582199,0.52495,3055.8,3055.5,0.00113685]
[1642581584195,0.00113685,3055.9,3055.5,0.00113685]
[1642581584393,0.00113685,3055.9,3055.6,0.06533148]
[1642581584592,0.00113685,3055.9,3055.7,2.78313143]
[1642581584993,0.00113685,3055.9,3055.8,6.62648432]
[1642581585195,2.16605485,3056.5,3056.0,0.05386563]
[1642581585393,2.16605485,3056.5,3056.1,2.78313143]
[1642581585597,0.00170527,3056.2,3055.9,1.14598766]
[1642581586038,0.00113684,3056.1,3055.9,1.14598766]
[1642581586440,0.00227369,3056.3,3055.9,1.14598766]
[1642581587441,0.82059369,3056.3,3055.8,0.5051]
[1642581588644,0.82059369,3056.3,3055.8,0.2693]
[1642581589046,0.00227369,3056.3,3055.8,0.2693]
[1642581589934,0.00227369,3056.3,3056.0,0.05887425]
[1642581590335,4.65920169,3057.1,3056.1,6.6]
[1642581590536,0.81816,3056.9,3056.1,0.00113685]
[1642581590735,0.82157054,3056.9,3056.1,0.00113685]
[1642581590941,0.82157054,3056.9,3056.0,0.01413885]
[1642581591134,0.82157054,3056.9,3056.1,0.00113685]
[1642581591735,1.63978054,3056.9,3056.1,0.00113685]
[1642581591936,0.81826,3056.7,3056.1,0.00113685]
[1642581592334,0.00170527,3056.6,3056.1,0.00113685]
[1642581592739,0.00113685,3056.5,3056.1,0.00113685]
[1642581592935,0.00113685,3056.5,3056.0,0.00170527]
[1642581593135,0.0022737,3056.7,3056.0,0.00170527]
[1642581593549,0.00170527,3056.6,3056.0,0.00170527]
[1642581593947,0.00113685,3056.5,3056.0,0.00170527]
[1642581595455,1.81825,3057.0,3056.1,4.2]
[1642581595456,1.52908685,3057.0,3056.1,4.2]
[1642581595652,1.63655,3056.9,3056.1,4.2]
[1642581595854,0.81824,3056.7,3056.2,0.00170527]
[1642581597197,0.81824,3056.7,3056.0,0.00284212]
[1642581597593,0.81828,3056.6,3056.0,0.00284212]
[1642581597792,0.81829,3056.5,3056.0,0.00284212]
[1642581598799,0.81829,3056.5,3056.0,1.00284212]
[1642581598995,0.81824,3056.7,3056.1,1.88378555]
[1642581599198,0.81824,3056.7,3056.1,1.88605925]
[1642581599396,0.81824,3056.7,3056.2,0.00170527]
[1642581599595,0.81824,3056.7,3056.2,0.72310527]
[1642581599997,0.81824,3056.7,3056.3,0.00113685]
[1642581600396,0.52534,3056.7,3056.3,0.00113685]
[1642581600795,0.52534,3056.7,3056.3,2.78373963]
[1642581601449,0.52534,3056.7,3056.2,0.7214]
[1642581601745,4.09310687,3056.8,3056.2,0.7214]
[1642581601746,0.81831,3056.5,3056.2,0.7214]
[1642581603248,1.63663,3056.5,3056.0,1.0]
[1642581603448,0.81833,3056.4,3056.0,1.0]
[1642581603648,0.81833,3056.4,3056.1,0.00113685]
[1642581605498,0.52183,3056.4,3056.1,0.00113685]
[1642581606301,2.977005,3056.4,3056.1,0.00113685]
[1642581606500,0.81842,3056.3,3056.1,0.00113685]
[1642581606707,1.81842,3056.3,3056.1,0.00113685]
[1642581607099,0.81842,3056.3,3056.1,0.00113685]
[1642581607600,1.81842,3056.3,3056.1,0.00113685]
[1642581608003,4.87185441,3056.2,3056.1,0.00113685]
[1642581608436,5.87185441,3056.2,3056.1,0.00113685]
[1642581609038,3.75,3056.2,3056.1,0.00113685]
[1642581609243,1.0,3056.2,3056.1,0.00113685]
[1642581609442,1.6369446,3056.3,3056.1,0.00113685]
[1642581609641,2.6369446,3056.3,3056.1,0.00113685]
[1642581610745,1.81842,3056.3,3056.1,0.00113685]
[1642581610946,0.81842,3056.3,3056.1,0.00113685]
[1642581612496,1.81842,3056.3,3056.1,0.00113685]
[1642581612699,0.81842,3056.3,3056.1,0.00113685]
[1642581612897,1.81842,3056.3,3056.1,0.00113685]
[1642581613901,1.81842,3056.3,3056.2,0.001828]
[1642581614702,3.98227,3056.3,3056.2,0.001828]
[1642581614904,7.2,3056.2,3056.1,0.00113685]
[1642581615102,11.12703,3056.2,3056.1,0.00113685]
[1642581615303,7.2,3056.1,3055.1,3.725928]
[1642581615505,0.81876,3055.7,3055.1,0.001828]
[1642581615703,0.471,3055.6,3055.2,0.00511581]